fUSD/lending_fUSD_20260530
["ID","MTS","AMOUNT","RATE_DAILY","PERIOD"]
[423389985,1780075859000,-500.0,0.0001066,2]
[423389986,1780075859000,-66441.77378029,0.000107,2]
[423389989,1780075859000,-8137.11031571,0.000109,2]
[423389992,1780075859000,-587.0,0.00010909,2]
[423389987,1780075859000,-4000.0,0.00010779,2]
[423389991,1780075859000,-8137.11031567,0.000109,2]
[423389988,1780075859000,-1600.0,0.00010862,2]
[423389993,1780075859000,-2351.0,0.00010909,2]
[423389994,1780075859000,-433.0,0.00010909,2]
[423390002,1780075859000,-21868.49599301,0.00011099,2]
[423390008,1780075859000,-26975.52674886,0.00011099,2]
[423390000,1780075859000,-3821.08630888,0.00010999,2]
[423390001,1780075859000,-4000.0,0.0001103,2]
[423389996,1780075859000,-186.45,0.00010959,2]
[423389999,1780075859000,-4523.52894987,0.00010999,2]
[423389998,1780075859000,-150.0,0.00010959,2]
[423389995,1780075859000,-426.48028601,0.00010934,2]
[423390003,1780075859000,-21868.49599296,0.00011099,2]
[423390005,1780075859000,-21868.49599296,0.00011099,2]
[423390004,1780075859000,-21868.49599296,0.00011099,2]
[423390007,1780075859000,-26975.52674886,0.00011099,2]
[423390009,1780075859000,-26975.52674886,0.00011099,2]
[423390010,1780075859000,-154.94,0.0001112,2]
[423390012,1780075859000,-150.0,0.00011233,2]
[423389997,1780075859000,-150.0,0.00010959,2]
[423390040,1780075859000,-538.0,0.00013199,2]
[423390083,1780075859000,-563.90863491,0.00013698,2]
[423390048,1780075859000,-150.0,0.00013488,2]
[423390075,1780075859000,-500.0,0.00013698,2]
[423390084,1780075859000,-500.0,0.00013698,2]
[423390085,1780075859000,-500.0,0.00013698,2]
[423390081,1780075859000,-500.0,0.00013698,2]
[423390080,1780075859000,-500.0,0.00013698,2]
[423390079,1780075859000,-500.0,0.00013698,2]
[423390078,1780075859000,-500.0,0.00013698,2]
[423390076,1780075859000,-500.0,0.00013698,2]
[423390082,1780075859000,-500.0,0.00013698,2]
[423390087,1780075859000,-500.0,0.00013698,2]
[423390077,1780075859000,-500.0,0.00013698,2]
[423390086,1780075859000,-500.0,0.00013698,2]
[423390072,1780075859000,-186.88424159,0.00013698,2]
[423390089,1780075859000,-500.0,0.00013698,2]
[423390099,1780075859000,-288.28618426,0.00013698,2]
[423390098,1780075859000,-500.0,0.00013698,2]
[423390090,1780075859000,-500.0,0.00013698,2]
[423390091,1780075859000,-500.0,0.00013698,2]
[423390088,1780075859000,-500.0,0.00013698,2]
[423390096,1780075859000,-500.0,0.00013698,2]
[423390094,1780075859000,-452.66918433,0.00013698,2]
[423390093,1780075859000,-500.0,0.00013698,2]
[423390092,1780075859000,-500.0,0.00013698,2]
[423390097,1780075859000,-500.0,0.00013698,2]
[423390095,1780075859000,-509.61126299,0.00013698,2]
[423390101,1780075859000,-500.0,0.00013698,2]
[423390100,1780075859000,-195.16910814,0.00013698,2]
[423390071,1780075859000,-500.0,0.00013698,2]
[423390042,1780075859000,-154.94,0.00013344,2]
[423390069,1780075859000,-500.0,0.00013698,2]
[423390073,1780075859000,-500.0,0.00013698,2]
[423390043,1780075859000,-2000.0,0.00013395,2]
[423390045,1780075859000,-153.0,0.00013412,2]
[423390044,1780075859000,-1575.66394522,0.00013412,2]
[423390046,1780075859000,-150.0,0.00013488,2]
[423390047,1780075859000,-150.0,0.00013488,2]
[423390049,1780075859000,-153.65997092,0.00013488,2]
[423390051,1780075859000,-150.0,0.00013488,2]
[423390053,1780075859000,-150.0,0.00013488,2]
[423390050,1780075859000,-154.125904,0.00013488,2]
[423390061,1780075859000,-588.65522476,0.00013698,2]
[423390054,1780075859000,-150.0,0.00013488,2]
[423390060,1780075859000,-150.0,0.00013687,2]
[423390052,1780075859000,-152.46068316,0.00013488,2]
[423390057,1780075859000,-150.0,0.00013603,2]
[423390055,1780075859000,-150.0,0.00013488,2]
[423390065,1780075859000,-475.54964142,0.00013698,2]
[423390074,1780075859000,-500.0,0.00013698,2]
[423390066,1780075859000,-500.0,0.00013698,2]
[423390068,1780075859000,-500.0,0.00013698,2]
[423390063,1780075859000,-500.0,0.00013698,2]
[423390064,1780075859000,-500.0,0.00013698,2]
[423390070,1780075859000,-500.0,0.00013698,2]
[423390062,1780075859000,-500.0,0.00013698,2]
[423390059,1780075859000,-26975.52674886,0.00013622,2]
[423390056,1780075859000,-150.0,0.00013588,2]
[423390058,1780075859000,-21868.49599296,0.00013615,2]
[423390067,1780075859000,-500.0,0.00013698,2]
[423390150,1780075860000,-750.92,0.00013698,2]
[423390144,1780075860000,-500.0,0.00013698,2]
[423390141,1780075860000,-544.9,0.00013698,2]
[423390145,1780075860000,-500.0,0.00013698,2]
[423390142,1780075860000,-544.9,0.00013698,2]
[423390133,1780075860000,-544.9,0.00013698,2]
[423390137,1780075860000,-544.9,0.00013698,2]
[423390138,1780075860000,-544.9,0.00013698,2]
[423390136,1780075860000,-544.9,0.00013698,2]
[423390135,1780075860000,-544.9,0.00013698,2]
[423390139,1780075860000,-544.9,0.00013698,2]
[423390140,1780075860000,-544.9,0.00013698,2]
[423390146,1780075860000,-500.0,0.00013698,2]
[423390160,1780075860000,-750.92,0.00013698,2]
[423390143,1780075860000,-544.9,0.00013698,2]
[423390148,1780075860000,-750.92,0.00013698,2]
[423390149,1780075860000,-750.92,0.00013698,2]
[423390151,1780075860000,-750.92,0.00013698,2]
[423390156,1780075860000,-750.92,0.00013698,2]
[423390155,1780075860000,-750.92,0.00013698,2]
[423390161,1780075860000,-184.0,0.00013698,2]
[423390154,1780075860000,-750.92,0.00013698,2]
[423390157,1780075860000,-750.92,0.00013698,2]
[423390152,1780075860000,-750.92,0.00013698,2]
[423390153,1780075860000,-750.92,0.00013698,2]
[423390159,1780075860000,-750.92,0.00013698,2]
[423390134,1780075860000,-544.9,0.00013698,2]
[423390147,1780075860000,-500.0,0.00013698,2]
[423390127,1780075860000,-500.0,0.00013698,2]
[423390117,1780075860000,-500.0,0.00013698,2]
[423390132,1780075860000,-225.35482439,0.00013698,2]
[423390108,1780075860000,-500.0,0.00013698,2]
[423390158,1780075860000,-750.92,0.00013698,2]
[423390111,1780075860000,-500.0,0.00013698,2]
[423390106,1780075860000,-500.0,0.00013698,2]
[423390110,1780075860000,-217.44,0.00013698,2]
[423390104,1780075860000,-500.0,0.00013698,2]
[423390105,1780075860000,-500.0,0.00013698,2]
[423390107,1780075860000,-377.70945128,0.00013698,2]
[423390109,1780075860000,-500.0,0.00013698,2]
[423390113,1780075860000,-500.0,0.00013698,2]
[423390112,1780075860000,-500.0,0.00013698,2]
[423390102,1780075860000,-500.0,0.00013698,2]
[423390124,1780075860000,-500.0,0.00013698,2]
[423390125,1780075860000,-500.0,0.00013698,2]
[423390115,1780075860000,-500.0,0.00013698,2]
[423390114,1780075860000,-500.0,0.00013698,2]
[423390116,1780075860000,-500.0,0.00013698,2]
[423390119,1780075860000,-500.0,0.00013698,2]
[423390123,1780075860000,-500.0,0.00013698,2]
[423390120,1780075860000,-500.0,0.00013698,2]
[423390121,1780075860000,-500.0,0.00013698,2]
[423390118,1780075860000,-500.0,0.00013698,2]
[423390122,1780075860000,-500.0,0.00013698,2]
[423390126,1780075860000,-500.0,0.00013698,2]
[423390128,1780075860000,-500.0,0.00013698,2]
[423390129,1780075860000,-500.0,0.00013698,2]
[423390130,1780075860000,-500.0,0.00013698,2]
[423390131,1780075860000,-500.0,0.00013698,2]
[423390103,1780075860000,-500.0,0.00013698,2]
[423390162,1780075860000,-166.66,0.00013699,2]
[423390163,1780075860000,-200.0,0.00013699,2]
[423390187,1780075860000,-500.0,0.00013699,2]
[423390194,1780075860000,-1545.0,0.00013809,2]
[423390211,1780075860000,-220.0,0.00014041,2]
[423390205,1780075860000,-11733.69196958,0.0001399,2]
[423390199,1780075860000,-199.37384035,0.00013842,2]
[423390204,1780075860000,-150.0,0.00013987,2]
[423390209,1780075860000,-250.0,0.00014,2]
[423390201,1780075860000,-150.0,0.00013887,2]
[423390207,1780075860000,-152.0,0.00014,7]
[423390210,1780075860000,-220.0,0.00014041,2]
[423390202,1780075860000,-150.0,0.00013949,2]
[423390203,1780075860000,-166.66,0.00013973,2]
[423390200,1780075860000,-150.0,0.00013862,2]
[423390191,1780075860000,-150.0,0.00013787,2]
[423390206,1780075860000,-152.0,0.00014,7]
[423390222,1780075860000,-153.0,0.00014206,2]
[423390212,1780075860000,-150.0,0.00014064,2]
[423390219,1780075860000,-1545.0,0.00014206,2]
[423390224,1780075860000,-150.0,0.00014237,2]
[423390220,1780075860000,-1545.0,0.00014206,2]
[423390217,1780075860000,-150.0,0.00014179,2]
[423390216,1780075860000,-166.66,0.0001411,2]
[423390213,1780075860000,-8137.11031567,0.00014074,2]
[423390215,1780075860000,-150.0,0.00014087,2]
[423390223,1780075860000,-150.0,0.00014237,2]
[423390218,1780075860000,-150.0,0.00014187,2]
[423390221,1780075860000,-1545.0,0.00014206,2]
[423390169,1780075860000,-500.0,0.00013699,2]
[423390208,1780075860000,-190.72078798,0.00014,10]
[423390195,1780075860000,-150.0,0.00013834,2]
[423390214,1780075860000,-150.0,0.00014087,2]
[423390193,1780075860000,-1544.0,0.00013809,2]
[423390165,1780075860000,-1351.39,0.00013699,2]
[423390166,1780075860000,-2500.0,0.00013699,2]
[423390167,1780075860000,-500.0,0.00013699,2]
[423390164,1780075860000,-661.28,0.00013699,2]
[423390173,1780075860000,-500.0,0.00013699,2]
[423390168,1780075860000,-500.0,0.00013699,2]
[423390171,1780075860000,-500.0,0.00013699,2]
[423390190,1780075860000,-500.0,0.00013753,2]
[423390172,1780075860000,-500.0,0.00013699,2]
[423390175,1780075860000,-500.0,0.00013699,2]
[423390185,1780075860000,-500.0,0.00013699,2]
[423390176,1780075860000,-500.0,0.00013699,2]
[423390180,1780075860000,-608.58364452,0.00013699,2]
[423390182,1780075860000,-500.0,0.00013699,2]
[423390170,1780075860000,-500.0,0.00013699,2]
[423390174,1780075860000,-500.0,0.00013699,2]
[423390179,1780075860000,-500.0,0.00013699,2]
[423390198,1780075860000,-156.587,0.00013842,2]
[423390197,1780075860000,-151.0,0.00013842,2]
[423390188,1780075860000,-500.0,0.00013699,2]
[423390196,1780075860000,-166.66,0.00013836,2]
[423390189,1780075860000,-150.0,0.00013718,2]
[423390192,1780075860000,-150.0,0.00013787,2]
[423390177,1780075860000,-500.0,0.00013699,2]
[423390184,1780075860000,-500.0,0.00013699,2]
[423390183,1780075860000,-500.0,0.00013699,2]
[423390178,1780075860000,-500.0,0.00013699,2]
[423390181,1780075860000,-500.0,0.00013699,2]
[423390186,1780075860000,-500.0,0.00013699,2]
[423390267,1780075861000,-500.0,0.0001485,2]
[423390268,1780075861000,-500.0,0.0001485,2]
[423390271,1780075861000,-500.0,0.0001485,2]
[423390273,1780075861000,-500.0,0.0001485,2]
[423390270,1780075861000,-500.0,0.0001485,2]
[423390256,1780075861000,-250.00000021,0.000148,2]
[423390259,1780075861000,-750.92,0.00014849,2]
[423390254,1780075861000,-231.1569584,0.00014762,2]
[423390255,1780075861000,-150.0,0.00014786,2]
[423390257,1780075861000,-1403.15887536,0.0001484,2]
[423390250,1780075861000,-150.0,0.00014687,2]
[423390263,1780075861000,-151.0,0.0001485,2]
[423390262,1780075861000,-334.40173,0.0001485,2]
[423390284,1780075861000,-500.0,0.0001485,2]
[423390264,1780075861000,-500.0,0.0001485,2]
[423390269,1780075861000,-500.0,0.0001485,2]
[423390272,1780075861000,-500.0,0.0001485,2]
[423390265,1780075861000,-500.0,0.0001485,2]
[423390275,1780075861000,-500.0,0.0001485,2]
[423390278,1780075861000,-500.0,0.0001485,2]
[423390277,1780075861000,-500.0,0.0001485,2]
[423390276,1780075861000,-500.0,0.0001485,2]
[423390283,1780075861000,-500.0,0.0001485,2]
[423390279,1780075861000,-500.0,0.0001485,2]
[423390280,1780075861000,-500.0,0.0001485,2]
[423390281,1780075861000,-500.0,0.0001485,2]
[423390261,1780075861000,-334.40173,0.0001485,2]
[423390274,1780075861000,-500.0,0.0001485,2]
[423390260,1780075861000,-221158.708631,0.0001485,2]
[423390245,1780075861000,-150.0,0.00014525,2]
[423390252,1780075861000,-350.0,0.00014735,2]
[423390285,1780075861000,-500.0,0.0001485,2]
[423390225,1780075861000,-150.0,0.00014237,2]
[423390227,1780075861000,-166.66,0.00014247,2]
[423390230,1780075861000,-150.0,0.00014287,2]
[423390232,1780075861000,-166.66,0.00014384,2]
[423390233,1780075861000,-150.0,0.00014387,2]
[423390229,1780075861000,-26975.52674886,0.00014261,2]
[423390228,1780075861000,-21868.49599296,0.00014258,2]
[423390226,1780075861000,-150.0,0.00014237,2]
[423390234,1780075861000,-150.0,0.00014387,2]
[423390236,1780075861000,-150.0,0.0001441,2]
[423390235,1780075861000,-350.0,0.00014389,2]
[423390231,1780075861000,-150.0,0.00014295,2]
[423390237,1780075861000,-350.0,0.00014451,2]
[423390242,1780075861000,-6453.0,0.00014519,2]
[423390248,1780075861000,-150.0,0.0001464,2]
[423390244,1780075861000,-155.18893265,0.00014524,2]
[423390240,1780075861000,-220.0,0.000145,2]
[423390241,1780075861000,-1613.0,0.00014519,2]
[423390238,1780075861000,-150.0,0.00014487,2]
[423390239,1780075861000,-220.0,0.000145,2]
[423390243,1780075861000,-1545.0,0.00014524,2]
[423390246,1780075861000,-150.0,0.00014587,2]
[423390247,1780075861000,-150.0,0.00014612,2]
[423390249,1780075861000,-350.0,0.00014663,2]
[423390253,1780075861000,-150.0,0.00014756,2]
[423390251,1780075861000,-150.0,0.00014687,2]
[423390258,1780075861000,-544.9,0.00014849,2]
[423390287,1780075861000,-500.0,0.0001485,2]
[423390266,1780075861000,-500.0,0.0001485,2]
[423390282,1780075861000,-500.0,0.0001485,2]
[423390321,1780075861000,-500.0,0.0001485,2]
[423390325,1780075861000,-500.0,0.0001485,2]
[423390322,1780075861000,-500.0,0.0001485,2]
[423390317,1780075861000,-500.0,0.0001485,2]
[423390318,1780075861000,-500.0,0.0001485,2]
[423390323,1780075861000,-500.0,0.0001485,2]
[423390324,1780075861000,-500.0,0.0001485,2]
[423390327,1780075861000,-500.0,0.0001485,2]
[423390326,1780075861000,-500.0,0.0001485,2]
[423390329,1780075861000,-500.0,0.0001485,2]
[423390328,1780075861000,-500.0,0.0001485,2]
[423390331,1780075861000,-500.0,0.0001485,2]
[423390337,1780075861000,-500.0,0.0001485,2]
[423390320,1780075861000,-500.0,0.0001485,2]
[423390330,1780075861000,-500.0,0.0001485,2]
[423390334,1780075861000,-500.0,0.0001485,2]
[423390335,1780075861000,-500.0,0.0001485,2]
[423390332,1780075861000,-500.0,0.0001485,2]
[423390336,1780075861000,-500.0,0.0001485,2]
[423390339,1780075861000,-500.0,0.0001485,2]
[423390341,1780075861000,-500.0,0.0001485,2]
[423390338,1780075861000,-500.0,0.0001485,2]
[423390342,1780075861000,-500.0,0.0001485,2]
[423390344,1780075861000,-500.0,0.0001485,2]
[423390346,1780075861000,-500.0,0.0001485,2]
[423390343,1780075861000,-500.0,0.0001485,2]
[423390340,1780075861000,-500.0,0.0001485,2]
[423390347,1780075861000,-500.0,0.0001485,2]
[423390333,1780075861000,-500.0,0.0001485,2]
[423390319,1780075861000,-500.0,0.0001485,2]
[423390286,1780075861000,-500.0,0.0001485,2]
[423390316,1780075861000,-500.0,0.0001485,2]
[423390314,1780075861000,-500.0,0.0001485,2]
[423390299,1780075861000,-500.0,0.0001485,2]
[423390288,1780075861000,-500.0,0.0001485,2]
[423390301,1780075861000,-500.0,0.0001485,2]
[423390291,1780075861000,-500.0,0.0001485,2]
[423390289,1780075861000,-500.0,0.0001485,2]
[423390300,1780075861000,-500.0,0.0001485,2]
[423390292,1780075861000,-500.0,0.0001485,2]
[423390293,1780075861000,-500.0,0.0001485,2]
[423390295,1780075861000,-500.0,0.0001485,2]
[423390296,1780075861000,-500.0,0.0001485,2]
[423390294,1780075861000,-500.0,0.0001485,2]
[423390297,1780075861000,-500.0,0.0001485,2]
[423390345,1780075861000,-500.0,0.0001485,2]
[423390290,1780075861000,-500.0,0.0001485,2]
[423390303,1780075861000,-500.0,0.0001485,2]
[423390315,1780075861000,-500.0,0.0001485,2]
[423390298,1780075861000,-500.0,0.0001485,2]
[423390306,1780075861000,-500.0,0.0001485,2]
[423390309,1780075861000,-500.0,0.0001485,2]
[423390310,1780075861000,-500.0,0.0001485,2]
[423390313,1780075861000,-500.0,0.0001485,2]
[423390304,1780075861000,-500.0,0.0001485,2]
[423390312,1780075861000,-500.0,0.0001485,2]
[423390305,1780075861000,-500.0,0.0001485,2]
[423390308,1780075861000,-500.0,0.0001485,2]
[423390302,1780075861000,-500.0,0.0001485,2]
[423390311,1780075861000,-500.0,0.0001485,2]
[423390307,1780075861000,-500.0,0.0001485,2]
[423390370,1780075862000,-151.0,0.00014892,2]
[423390368,1780075862000,-151.0,0.00014892,2]
[423390367,1780075862000,-151.0,0.00014892,2]
[423390364,1780075862000,-151.0,0.00014892,2]
[423390366,1780075862000,-151.0,0.00014892,2]
[423390365,1780075862000,-151.0,0.00014892,2]
[423390376,1780075862000,-150.0,0.00014985,2]
[423390371,1780075862000,-750.92,0.00014899,2]
[423390373,1780075862000,-8137.11031567,0.000149,2]
[423390374,1780075862000,-509.55665766,0.000149,2]
[423390375,1780075862000,-21868.49599296,0.000149,2]
[423390369,1780075862000,-151.0,0.00014892,2]
[423390372,1780075862000,-26975.52674886,0.000149,2]
[423390363,1780075862000,-151.0,0.00014892,2]
[423390348,1780075862000,-500.0,0.0001485,2]
[423390361,1780075862000,-750.92,0.00014891,2]
[423390360,1780075862000,-750.92,0.00014891,2]
[423390357,1780075862000,-544.9,0.00014891,2]
[423390351,1780075862000,-287.87789,0.0001485,2]
[423390358,1780075862000,-544.9,0.00014891,2]
[423390359,1780075862000,-544.9,0.00014891,2]
[423390356,1780075862000,-151.0,0.00014889,2]
[423390355,1780075862000,-150.0,0.00014886,2]
[423390354,1780075862000,-150.0,0.00014871,2]
[423390352,1780075862000,-350.0,0.00014856,2]
[423390353,1780075862000,-334.40173,0.0001486,2]
[423390350,1780075862000,-500.0,0.0001485,2]
[423390383,1780075862000,-270.19191715,0.00014986,2]
[423390349,1780075862000,-500.0,0.0001485,2]
[423390362,1780075862000,-645316.7297078,0.00014892,2]
[423390379,1780075862000,-154.07871726,0.00014986,2]
[423390380,1780075862000,-217.23219505,0.00014986,2]
[423390381,1780075862000,-276.97587339,0.00014986,2]
[423390406,1780075862000,-300.0,0.00014999,2]
[423390407,1780075862000,-310.00034415,0.00014999,2]
[423390403,1780075862000,-750.92,0.00014999,2]
[423390409,1780075862000,-41965.9449915,0.00015,2]
[423390378,1780075862000,-227.52200583,0.00014986,2]
[423390405,1780075862000,-300.0,0.00014999,2]
[423390402,1780075862000,-750.92,0.00014999,2]
[423390404,1780075862000,-751.0573129,0.00014999,2]
[423390408,1780075862000,-430175.72017996,0.00015,2]
[423390400,1780075862000,-750.92,0.00014999,2]
[423390401,1780075862000,-750.92,0.00014999,2]
[423390398,1780075862000,-750.92,0.00014999,2]
[423390399,1780075862000,-750.92,0.00014999,2]
[423390397,1780075862000,-544.9596255,0.00014999,2]
[423390410,1780075862000,-31684.9317,0.00015,2]
[423390389,1780075862000,-544.9,0.00014999,2]
[423390395,1780075862000,-544.9,0.00014999,2]
[423390377,1780075862000,-157.02579067,0.00014986,2]
[423390384,1780075862000,-1403.15887536,0.0001499,2]
[423390386,1780075862000,-151.0,0.00014997,2]
[423390385,1780075862000,-151.0,0.00014997,2]
[423390382,1780075862000,-150.24304197,0.00014986,2]
[423390387,1780075862000,-151.0,0.00014997,2]
[423390396,1780075862000,-544.9,0.00014999,2]
[423390391,1780075862000,-544.9,0.00014999,2]
[423390390,1780075862000,-544.9,0.00014999,2]
[423390392,1780075862000,-544.9,0.00014999,2]
[423390394,1780075862000,-544.9,0.00014999,2]
[423390388,1780075862000,-407.36603384,0.00014999,2]
[423390393,1780075862000,-544.9,0.00014999,2]
[423390411,1780075863000,-500.0,0.00015,2]
[423390412,1780075863000,-522.9232407,0.00015,2]
[423390413,1780075863000,-6007.06533374,0.00015,2]
[423390415,1780075863000,-1601.89475398,0.00015,2]
[423390414,1780075863000,-1211.12500478,0.00015,2]
[423390417,1780075863000,-1694.0,0.00015,2]
[423390418,1780075863000,-754270.4700927,0.00015,2]
[423390420,1780075863000,-9128.46436286,0.00015,2]
[423390416,1780075863000,-1096.2926835,0.00015,2]
[423390419,1780075863000,-14849.09756813,0.00015,2]
[423390421,1780075864000,571761.79676175,8.918e-05,2]
[423390422,1780075883000,-1770.0,8.918e-05,2]
[423390423,1780075902000,-1770.0,8.918e-05,2]
[423390425,1780075922000,150.0,0.00014438,120]
[423390424,1780075922000,-1507.0,8.918e-05,2]
[423390427,1780075942000,-300.0,8.917e-05,2]
[423390428,1780075994000,-2000.0,8.918e-05,2]
[423390429,1780076014000,-500.0,8.917e-05,2]
[423390430,1780076066000,-2000.0,8.831e-05,2]
[423390431,1780076087000,-1226.886,8.831e-05,2]
[423390432,1780076132000,193.883595,0.00028082,120]
[423390433,1780076152000,152.0,0.00010019,30]
[423390434,1780076153000,152.0,0.0002501,120]
[423390435,1780076249000,350000.0,0.00028082,120]
[423390436,1780076281000,751.24,8.464e-05,2]
[423390443,1780076324000,-133.523,8.915e-05,2]
[423390442,1780076324000,-500.0,8.915e-05,2]
[423390441,1780076324000,-500.0,8.915e-05,2]
[423390439,1780076324000,-207.297,8.831e-05,2]
[423390440,1780076324000,-500.0,8.915e-05,2]
[423390438,1780076324000,-250.0,8.688e-05,2]
[423390437,1780076324000,-1310.18,8.546e-05,2]
[423390453,1780076402000,-500.0,8.916e-05,2]
[423390452,1780076402000,-1200.0,8.915e-05,2]
[423390450,1780076402000,-191.53533937,8.914e-05,2]
[423390446,1780076402000,-500.0,8.914e-05,2]
[423390447,1780076402000,-150.0,8.914e-05,2]
[423390448,1780076402000,-500.0,8.914e-05,2]
[423390451,1780076402000,-193.0,8.914e-05,2]
[423390444,1780076402000,-166.66,8.749e-05,2]
[423390449,1780076402000,-250.0,8.914e-05,2]
[423390454,1780076402000,-300.0,8.917e-05,2]
[423390458,1780076402000,-18238.48,8.918e-05,2]
[423390456,1780076402000,-49334.76,8.918e-05,2]
[423390457,1780076402000,-3013.84,8.918e-05,2]
[423390445,1780076402000,-2500.0,8.818e-05,2]
[423390461,1780076402000,-29529.76,8.918e-05,2]
[423390460,1780076402000,-9999.99,8.918e-05,2]
[423390462,1780076402000,-175461.67333825,8.918e-05,2]
[423390464,1780076402000,-499.99,8.946e-05,2]
[423390465,1780076402000,-2616.81,8.994e-05,2]
[423390463,1780076402000,-160.0,8.946e-05,2]
[423390455,1780076402000,-230.0,8.917e-05,2]
[423390459,1780076402000,-2774.15,8.918e-05,2]
[423390466,1780076405000,24999.99,8.946e-05,2]
[423390468,1780076461000,300.0,9.01e-05,2]
[423390469,1780076521000,300.0,9.01e-05,2]
[423390474,1780076524000,639.40096448,9.01e-05,2]
[423390473,1780076524000,150.0,9.01e-05,2]
[423390472,1780076524000,500.0,9.01e-05,2]
[423390471,1780076524000,500.0,9.01e-05,2]
[423390470,1780076524000,500.0,9.01e-05,2]
[423390475,1780076532000,1000.0,9.01e-05,2]
[423390476,1780076537000,752.15367203,9.01e-05,2]
[423390478,1780076537000,752.15367203,9.01e-05,2]
[423390477,1780076537000,752.15367203,9.01e-05,2]
[423390479,1780076537000,752.15367203,9.01e-05,2]
[423390480,1780076537000,752.15367203,9.01e-05,2]
[423390481,1780076537000,752.15367203,9.01e-05,2]
[423390482,1780076537000,752.15367203,9.01e-05,2]
[423390483,1780076537000,752.15367203,9.01e-05,2]
[423390484,1780076537000,752.15367203,9.01e-05,2]
[423390486,1780076537000,752.15367203,9.01e-05,2]
[423390488,1780076537000,752.15367203,9.01e-05,2]
[423390487,1780076537000,752.15367203,9.01e-05,2]
[423390490,1780076537000,752.15367203,9.01e-05,2]
[423390489,1780076537000,752.15367203,9.01e-05,2]
[423390492,1780076537000,752.15367203,9.01e-05,2]
[423390491,1780076537000,752.15367203,9.01e-05,2]
[423390493,1780076537000,752.15367203,9.01e-05,2]
[423390485,1780076537000,752.15367203,9.01e-05,2]
[423390494,1780076538000,752.15367203,9.01e-05,2]
[423390495,1780076538000,752.15367203,9.01e-05,2]
[423390498,1780076538000,752.15367203,9.01e-05,2]
[423390496,1780076538000,752.15367203,9.01e-05,2]
[423390499,1780076538000,752.15367203,9.01e-05,2]
[423390500,1780076538000,752.15367203,9.01e-05,2]
[423390497,1780076538000,752.15367203,9.01e-05,2]
[423390502,1780076538000,752.15367203,9.01e-05,2]
[423390503,1780076538000,752.15367203,9.01e-05,2]
[423390505,1780076538000,752.15367203,9.01e-05,2]
[423390504,1780076538000,752.15367203,9.01e-05,2]
[423390506,1780076538000,752.15367203,9.01e-05,2]
[423390507,1780076538000,752.15367203,9.01e-05,2]
[423390508,1780076538000,752.15367203,9.01e-05,2]
[423390501,1780076538000,752.15367203,9.01e-05,2]
[423390509,1780076539000,752.15367203,9.01e-05,2]
[423390510,1780076539000,752.15367203,9.01e-05,2]
[423390512,1780076539000,752.15367203,9.01e-05,2]
[423390511,1780076539000,752.15367203,9.01e-05,2]
[423390514,1780076539000,752.15367203,9.01e-05,2]
[423390513,1780076539000,752.15367203,9.01e-05,2]
[423390515,1780076539000,752.15367203,9.01e-05,2]
[423390517,1780076539000,752.15367203,9.01e-05,2]
[423390516,1780076539000,752.15367203,9.01e-05,2]